[Event "Skanderborg Skakklub SmukSkak EMT"]
[Site "Niels Ebbesenskolen, Skanderborg, Denmark"]
[Date "2020.08.22"]
[Round "3.5"]
[White "Andersen, Rune"]
[Black "Brondt, Nicolai Kvist"]
[Result "0-1"]
[TimeControl "90 min. til 40 træk, derefter 30 min. plus opsparet tid til resten af partiet med 30 sek. tillæg pr. træk fra træk ét."]
[BlackTitle "FM"]
[WhiteFideId "1405683"]
[BlackFideId "1413848"]
[WhiteElo "2129"]
[BlackElo "2244"]

1. d4 {[%clk 01:30:52]} {[%emt 00:00:08]} d5 {[%clk 01:30:42]} {[%emt
00:00:21]} 2. c4 {[%clk 01:31:17]} {[%emt 00:00:10]} c6 {[%clk 01:31:08]} 3.
Nc3 {[%clk 01:31:42]} {[%emt 00:00:10]} Nf6 {[%clk 01:31:35]} 4. Nf3 {[%clk
01:32:07]} e6 {[%clk 01:32:02]} {[%emt 00:00:10]} 5. Bg5 {[%clk 01:31:16]}
{[%emt 00:01:12]} h6 {[%clk 01:32:28]} {[%emt 00:00:10]} 6. Bh4 {[%clk
01:31:33]} {[%emt 00:00:10]} dxc4 {[%clk 01:32:47]} {[%emt 00:00:10]} 7. e4
{[%clk 01:31:44]} {[%emt 00:00:21]} g5 {[%clk 01:33:11]} {[%emt 00:00:10]} 8.
Bg3 {[%clk 01:32:00]} {[%emt 00:00:10]} b5 {[%clk 01:33:34]} {[%emt 00:00:10]}
9. Be2 {[%clk 01:31:41]} {[%emt 00:00:41]} Bb7 {[%clk 01:32:15]} {[%emt
00:01:52]} 10. Qc2 {[%clk 01:29:28]} {[%emt 00:02:43]} Nbd7 {[%clk 01:29:06]}
{[%emt 00:03:35]} 11. Rd1 {[%clk 01:29:18]} {[%emt 00:00:39]} a6 {[%clk
01:21:06]} {[%emt 00:08:32]} 12. O-O {[%clk 01:28:07]} {[%emt 00:01:39]} Be7
{[%clk 01:16:24]} {[%emt 00:05:13]} 13. Ne5 {[%clk 01:27:52]} {[%emt 00:00:44]}
h5 {[%clk 01:07:12]} {[%emt 00:09:43]} 14. h3 {[%clk 01:06:07]} {[%emt
00:22:15]} Nxe5 {[%clk 00:56:59]} {[%emt 00:10:46]} 15. Bxe5 {[%clk 01:03:31]}
{[%emt 00:03:04]} Rh6 {[%clk 00:49:18]} {[%emt 00:08:10]} 16. Rfe1 {[%clk
00:55:33]} {[%emt 00:08:29]} Qb6 {[%clk 00:47:01]} {[%emt 00:02:47]} 17. Qd2
{[%clk 00:39:51]} {[%emt 00:16:13]} Nd7 {[%clk 00:39:34]} {[%emt 00:07:57]} 18.
Bh2 {[%clk 00:40:01]} {[%emt 00:00:19]} O-O-O {[%clk 00:38:07]} {[%emt
00:01:58]} 19. Qe3 {[%clk 00:38:37]} {[%emt 00:01:53]} e5 {[%clk 00:34:08]}
{[%emt 00:04:30]} 20. Bf3 {[%clk 00:35:26]} {[%emt 00:03:41]} f6 {[%clk
00:30:35]} {[%emt 00:04:02]} 21. g4 {[%clk 00:30:31]} {[%emt 00:05:34]} h4
{[%clk 00:24:06]} {[%emt 00:06:51]} 22. a3 {[%clk 00:27:49]} {[%emt 00:03:13]}
Rhh8 {[%clk 00:18:13]} {[%emt 00:06:23]} 23. Ne2 {[%clk 00:27:34]} {[%emt
00:00:45]} c5 {[%clk 00:15:24]} {[%emt 00:03:19]} 24. d5 {[%clk 00:24:41]}
{[%emt 00:03:23]} Bd6 {[%clk 00:14:18]} {[%emt 00:01:35]} 25. Rc1 {[%clk
00:23:04]} {[%emt 00:02:08]} Kc7 {[%clk 00:13:08]} {[%emt 00:01:41]} 26. Nc3
{[%clk 00:22:32]} {[%emt 00:01:01]} Rb8 {[%clk 00:11:27]} {[%emt 00:02:11]} 27.
Nd1 {[%clk 00:21:33]} {[%emt 00:01:29]} Nf8 {[%clk 00:08:26]} {[%emt 00:03:31]}
28. Qd2 {[%clk 00:19:04]} {[%emt 00:02:58]} Ng6 {[%clk 00:08:48]} {[%emt
00:00:08]} 29. Ne3 {[%clk 00:19:25]} {[%emt 00:00:09]} Ne7 {[%clk 00:08:47]}
{[%emt 00:00:30]} 30. Be2 {[%clk 00:18:38]} {[%emt 00:01:18]} Rhc8 {[%clk
00:07:58]} {[%emt 00:01:18]} 31. a4 {[%clk 00:11:12]} {[%emt 00:07:58]} Kd7
{[%clk 00:08:00]} {[%emt 00:00:26]} 32. Kg2 {[%clk 00:09:21]} {[%emt 00:02:22]}
Ke8 {[%clk 00:07:31]} {[%emt 00:00:59]} 33. f3 {[%clk 00:09:08]} {[%emt
00:00:43]} Kf7 {[%clk 00:07:00]} {[%emt 00:00:59]} 34. Rc2 {[%clk 00:08:03]}
{[%emt 00:01:36]} Ng6 {[%clk 00:05:56]} {[%emt 00:01:34]} 35. Nf5 {[%clk
00:05:16]} {[%emt 00:03:17]} Nf4+ {[%clk 00:04:48]} {[%emt 00:01:37]} 36. Bxf4
{[%clk 00:05:14]} {[%emt 00:00:31]} exf4 {[%clk 00:05:00]} {[%emt 00:00:19]} 37.
Nxd6+ {[%clk 00:04:53]} {[%emt 00:00:51]} Qxd6 {[%clk 00:05:21]} {[%emt
00:00:08]} 38. axb5 {[%clk 00:04:50]} {[%emt 00:00:33]} axb5 {[%clk 00:05:42]}
{[%emt 00:00:09]} 39. Ra1 {[%clk 00:04:30]} {[%emt 00:00:49]} Ra8 {[%clk
00:04:58]} {[%emt 00:01:14]} 40. Rcc1 {[%clk 00:04:04]} {[%emt 00:00:58]} Qe5
{[%clk 00:03:20]} {[%emt 00:02:08]} 41. Qc2 {[%clk 00:26:58]} {[%emt 00:07:36]}
Kg7 {[%clk 00:31:30]} {[%emt 00:02:25]} 42. Rd1 {[%clk 00:26:32]} {[%emt
00:00:52]} Re8 {[%clk 00:27:36]} {[%emt 00:04:35]} 43. Kf1 {[%clk 00:26:03]}
{[%emt 00:01:01]} Red8 {[%clk 00:26:25]} {[%emt 00:01:34]} 44. Kg2 {[%clk
00:25:59]} {[%emt 00:00:41]} Kf7 {[%clk 00:24:31]} {[%emt 00:02:22]} 45. Bf1
{[%clk 00:21:53]} {[%emt 00:04:29]} Ke7 {[%clk 00:22:20]} {[%emt 00:02:42]} 46.
Be2 {[%clk 00:21:10]} {[%emt 00:01:21]} Kd6 {[%clk 00:21:23]} {[%emt 00:01:21]}
47. Qd2 {[%clk 00:20:58]} {[%emt 00:00:38]} Kc7 {[%clk 00:14:31]} {[%emt
00:07:16]} 48. Qc2 {[%clk 00:14:37]} {[%emt 00:06:51]} Rxa1 {[%clk 00:08:00]}
{[%emt 00:07:01]} 49. Rxa1 {[%clk 00:14:59]} {[%emt 00:00:08]} Qd4 {[%clk
00:07:52]} {[%emt 00:00:36]} 50. Qc1 {[%clk 00:11:29]} {[%emt 00:04:11]} Rd6
{[%clk 00:03:11]} {[%emt 00:05:02]} 51. Ra5 {[%clk 00:07:55]} {[%emt 00:04:04]}
Ba6 {[%clk 00:03:02]} {[%emt 00:00:36]} 52. Qc2 {[%clk 00:03:25]} {[%emt
00:05:04]} Kb6 {[%clk 00:02:48]} {[%emt 00:00:44]} 53. Ra1 {[%clk 00:03:27]}
{[%emt 00:00:28]} Qe3 {[%clk 00:02:35]} {[%emt 00:00:42]} 54. Kf1 {[%clk
00:03:42]} {[%emt 00:00:16]} Qb3 {[%clk 00:02:14]} {[%emt 00:00:58]} 55. Qc1
{[%clk 00:03:34]} {[%emt 00:00:41]} Rd7 {[%clk 00:01:40]} {[%emt 00:00:58]} 56.
Ra3 {[%clk 00:03:40]} {[%emt 00:00:21]} Qb4 {[%clk 00:02:04]} {[%emt 00:00:10]}
57. Qa1 {[%clk 00:03:59]} {[%emt 00:00:10]} Ra7 {[%clk 00:02:10]} {[%emt
00:00:21]} 58. Qc1 {[%clk 00:02:52]} {[%emt 00:01:42]} Bc8 {[%clk 00:01:52]}
{[%emt 00:00:41]} 59. Rxa7 {[%clk 00:03:03]} {[%emt 00:00:21]} Kxa7 {[%clk
00:02:20]} {[%emt 00:00:10]} 60. Qc2 {[%clk 00:03:03]} {[%emt 00:00:21]} Bb7
{[%clk 00:00:47]} {[%emt 00:02:08]} 61. d6 {[%clk 00:02:49]} {[%emt 00:00:39]}
Qa5 {[%clk 00:00:56]} {[%emt 00:00:19]} 62. Qd1 {[%clk 00:01:46]} {[%emt
00:01:38]} Qd8 {[%clk 00:01:04]} {[%emt 00:00:21]} 63. b3 {[%clk 00:01:54]}
{[%emt 00:00:21]} cxb3 {[%clk 00:01:12]} {[%emt 00:00:31]} 64. Qxb3 {[%clk
00:02:01]} {[%emt 00:00:21]} Qxd6 {[%clk 00:01:34]} {[%emt 00:00:10]} 65. Bxb5
{[%clk 00:01:33]} {[%emt 00:00:52]} Ba6 {[%clk 00:01:18]} {[%emt 00:00:52]} 66.
Qf7+ {[%clk 00:01:46]} {[%emt 00:00:10]} Kb6 {[%clk 00:01:34]} {[%emt
00:00:21]} 67. Bxa6 Kxa6 {[%clk 00:02:02]} 68. Qc4+ {[%clk 00:01:52]} {[%emt
00:00:51]} Ka5 {[%clk 00:02:11]} {[%emt 00:00:20]} 69. Qc3+ {[%clk 00:01:22]}
{[%emt 00:01:01]} Kb6 {[%clk 00:02:17]} {[%emt 00:00:20]} 70. Ke2 {[%clk
00:01:34]} {[%emt 00:00:20]} Qd4 {[%clk 00:02:19]} {[%emt 00:00:16]} 71. Qb3+
{[%clk 00:01:44]} {[%emt 00:00:20]} Ka5 {[%clk 00:02:29]} {[%emt 00:00:20]} 72.
Qa3+ {[%clk 00:01:10]} {[%emt 00:01:21]} Kb5 {[%clk 00:02:52]} 73. Qb3+ {[%clk
00:01:28]} {[%emt 00:00:20]} Qb4 {[%clk 00:03:12]} 74. Qd1 {[%clk 00:00:48]}
{[%emt 00:01:03]} Qc4+ {[%clk 00:03:22]} {[%emt 00:00:17]} 75. Ke1 {[%clk
00:01:13]} {[%emt 00:00:05]} Qc3+ {[%clk 00:03:37]} {[%emt 00:00:13]} 76. Kf1
{[%clk 00:01:20]} {[%emt 00:00:34]} Kb4 {[%clk 00:02:18]} {[%emt 00:01:43]} 77.
Kg2 {[%clk 00:01:02]} {[%emt 00:00:52]} c4 {[%clk 00:02:15]} {[%emt 00:00:31]}
78. Qd6+ {[%clk 00:01:21]} {[%emt 00:00:10]} Kb3 {[%clk 00:02:34]} {[%emt
00:00:10]} 79. Qb6+ {[%clk 00:01:01]} {[%emt 00:00:51]} Ka2 {[%clk 00:02:54]}
{[%emt 00:00:20]} 80. Qa6+ {[%clk 00:00:57]} {[%emt 00:00:18]} Kb1 {[%clk
00:03:09]} {[%emt 00:00:15]} 81. Qc6 {[%clk 00:00:53]} {[%emt 00:00:33]} Qd4
{[%clk 00:02:49]} {[%emt 00:00:49]} 82. Qd5 {[%clk 00:01:00]} {[%emt 00:00:25]}
Qb2+ {[%clk 00:01:55]} {[%emt 00:01:24]} 83. Kg1 {[%clk 00:00:35]} {[%emt
00:00:55]} c3 {[%clk 00:02:01]} {[%emt 00:00:31]} 0-1

[Event "Skanderborg Skakklub SmukSkak EMT"]
[Site "Niels Ebbesenskolen, Skanderborg, Denmark"]
[Date "2020.08.23"]
[Round "4.1"]
[White "Olsen, Michael R. W."]
[Black "Bønnelykke, Ole"]
[Result "1/2-1/2"]
[TimeControl "90 min. til 40 træk, derefter 30 min. plus opsparet tid til resten af partiet med 30 sek. tillæg pr. træk fra træk ét."]
[WhiteFideId "1440969"]
[BlackFideId "1407287"]
[WhiteElo "2104"]
[BlackElo "2021"]

1. g3 {[%clk 01:30:43]} {[%emt 00:00:16]} e5 {[%clk 01:30:15]} {[%emt
00:00:46]} 2. Bg2 {[%clk 01:30:54]} {[%emt 00:00:17]} Nc6 {[%clk 01:30:35]}
{[%emt 00:00:12]} 3. c3 {[%clk 01:30:28]} {[%emt 00:00:55]} g6 {[%clk
01:29:52]} {[%emt 00:01:13]} 4. b4 {[%clk 01:30:45]} {[%emt 00:00:14]} Bg7
{[%clk 01:28:48]} {[%emt 00:01:34]} 5. Na3 {[%clk 01:30:56]} {[%emt 00:00:19]}
f5 {[%clk 01:27:44]} {[%emt 00:01:33]} 6. Nc2 {[%clk 01:28:30]} {[%emt
00:02:56]} d5 {[%clk 01:26:37]} {[%emt 00:01:36]} 7. d4 {[%clk 01:22:28]}
{[%emt 00:06:34]} e4 {[%clk 01:25:57]} {[%emt 00:01:09]} 8. h4 {[%clk
01:20:30]} {[%emt 00:02:28]} h6 {[%clk 01:22:28]} {[%emt 00:03:59]} 9. Nh3
{[%clk 01:20:39]} {[%emt 00:00:22]} Be6 {[%clk 01:22:03]} {[%emt 00:00:54]} 10.
Ne3 {[%clk 01:18:53]} {[%emt 00:02:17]} Qd7 {[%clk 01:19:49]} {[%emt 00:02:43]}
11. Qb3 {[%clk 01:09:49]} {[%emt 00:09:35]} Nf6 {[%clk 01:17:37]} {[%emt
00:02:41]} 12. Nd1 {[%clk 01:09:20]} {[%emt 00:00:59]} O-O {[%clk 01:15:01]}
{[%emt 00:03:06]} 13. Nb2 {[%clk 01:06:17]} {[%emt 00:03:33]} Ne7 {[%clk
01:14:15]} {[%emt 00:01:16]} 14. a4 {[%clk 01:03:17]} {[%emt 00:03:31]} b6
{[%clk 01:10:54]} {[%emt 00:03:51]} 15. Bf1 {[%clk 01:00:22]} {[%emt 00:03:24]}
c5 {[%clk 01:09:10]} {[%emt 00:02:14]} 16. e3 {[%clk 00:54:09]} {[%emt
00:06:43]} Nc6 {[%clk 01:02:26]} {[%emt 00:07:13]} 17. Bd2 {[%clk 00:51:55]}
{[%emt 00:02:45]} Bf7 {[%clk 00:57:34]} {[%emt 00:05:22]} 18. Qa3 {[%clk
00:50:37]} {[%emt 00:01:48]} c4 {[%clk 00:56:35]} {[%emt 00:01:30]} 19. Nd1
{[%clk 00:45:53]} {[%emt 00:05:14]} Rfe8 {[%clk 00:54:10]} {[%emt 00:02:54]} 20.
Bc1 {[%clk 00:44:47]} {[%emt 00:01:35]} Bf8 {[%clk 00:53:30]} {[%emt 00:01:10]}
21. Qa2 {[%clk 00:43:49]} {[%emt 00:01:29]} Bd6 {[%clk 00:52:19]} {[%emt
00:01:41]} 22. Ba3 {[%clk 00:42:36]} {[%emt 00:01:44]} a6 {[%clk 00:52:00]}
{[%emt 00:00:49]} 23. Qc2 {[%clk 00:40:31]} {[%emt 00:02:35]} Kg7 {[%clk
00:51:04]} {[%emt 00:01:25]} 24. Nb2 {[%clk 00:39:00]} {[%emt 00:02:02]} b5
{[%clk 00:49:29]} {[%emt 00:02:05]} 25. Be2 {[%clk 00:34:00]} {[%emt 00:05:29]}
Qc7 {[%clk 00:45:56]} {[%emt 00:04:04]} 26. Kd2 {[%clk 00:32:44]} {[%emt
00:01:45]} a5 {[%clk 00:44:01]} {[%emt 00:02:26]} 27. bxa5 {[%clk 00:25:57]}
{[%emt 00:07:22]} b4 {[%clk 00:43:35]} {[%emt 00:01:00]} 28. cxb4 {[%clk
00:23:38]} {[%emt 00:02:40]} Bxb4+ {[%emt 00:04:23]} 29. Bxb4 {[%emt 00:00:10]}
Nxb4 {[%emt 00:01:42]} 30. Qc3 {[%emt 00:06:07]} Rab8 {[%emt 00:06:20]} 31.
Rhb1 {[%emt 00:04:01]} Qd7 {[%emt 00:02:35]} 32. Nd1 {[%emt 00:00:49]} Nd3
{[%clk 00:33:41]} {[%emt 00:00:14]} 33. Rb6 {[%clk 00:11:37]} {[%emt 00:00:35]}
f4 {[%clk 00:25:40]} {[%emt 00:08:30]} 34. Nxf4 {[%clk 00:10:58]} {[%emt
00:01:09]} g5 {[%clk 00:25:23]} {[%emt 00:00:46]} 35. Ng2 {[%clk 00:06:20]}
{[%emt 00:05:09]} Qh3 {[%clk 00:22:11]} {[%emt 00:03:41]} 36. Rab1 {[%clk
00:06:46]} {[%emt 00:00:06]} Rxb6 {[%clk 00:19:10]} {[%emt 00:03:30]} 37. axb6
{[%clk 00:07:09]} {[%emt 00:00:07]} Qxg2 {[%clk 00:19:06]} {[%emt 00:00:33]} 38.
b7 {[%clk 00:07:21]} {[%emt 00:00:20]} Nd7 {[%clk 00:18:24]} {[%emt 00:01:11]}
39. a5 {[%clk 00:07:14]} {[%emt 00:00:37]} Nb8 {[%clk 00:17:07]} {[%emt
00:01:47]} 40. hxg5 {[%clk 00:07:39]} {[%emt 00:00:05]} hxg5 {[%clk 00:16:50]}
{[%emt 00:00:47]} 41. Qa3 {[%clk 00:07:14]} {[%emt 00:00:56]} Nxf2 {[%clk
00:15:18]} {[%emt 00:02:02]} 42. Nc3 {[%clk 00:26:19]} {[%emt 00:11:25]} Qxg3
{[%emt 00:10:37]} 1/2-1/2

[Event "Skanderborg Skakklub SmukSkak EMT"]
[Site "Niels Ebbesenskolen, Skanderborg, Denmark"]
[Date "2020.08.23"]
[Round "4.2"]
[White "Hansen, Morten Lyck"]
[Black "Wilton, Lars"]
[Result "1-0"]
[TimeControl "90 min. til 40 træk, derefter 30 min. plus opsparet tid til resten af partiet med 30 sek. tillæg pr. træk fra træk ét."]
[WhiteFideId "1408437"]
[BlackFideId "1404962"]
[WhiteElo "1945"]
[BlackElo "1984"]

1. e4 {[%clk 01:30:53]} {[%emt 00:00:06]} d5 {[%clk 01:30:43]} {[%emt
00:00:18]} 2. exd5 {[%clk 01:31:19]} {[%emt 00:00:05]} Nf6 {[%clk 01:31:06]}
{[%emt 00:00:06]} 3. Nf3 {[%clk 01:31:37]} {[%emt 00:00:11]} Nxd5 {[%clk
01:30:38]} {[%emt 00:00:59]} 4. d4 {[%clk 01:31:47]} {[%emt 00:00:20]} g6
{[%clk 01:30:08]} {[%emt 00:01:00]} 5. c4 {[%clk 01:31:35]} {[%emt 00:00:42]}
Nb6 {[%clk 01:30:30]} {[%emt 00:00:07]} 6. c5 {[%clk 01:31:18]} {[%emt
00:00:48]} Nd5 {[%clk 01:29:50]} {[%emt 00:01:10]} 7. Bc4 {[%clk 01:31:21]}
{[%emt 00:00:26]} Bg7 {[%clk 01:30:16]} {[%emt 00:00:06]} 8. h3 {[%clk
01:30:53]} {[%emt 00:00:58]} O-O {[%clk 01:30:18]} {[%emt 00:00:27]} 9. O-O
{[%clk 01:31:12]} {[%emt 00:00:11]} h6 {[%clk 01:19:19]} {[%emt 00:11:29]} 10.
Nc3 {[%clk 01:29:12]} {[%emt 00:02:28]} c6 {[%clk 01:18:39]} {[%emt 00:01:12]}
11. Re1 {[%clk 01:28:48]} {[%emt 00:00:53]} Nxc3 {[%clk 01:10:07]} {[%emt
00:09:03]} 12. bxc3 {[%clk 01:29:14]} {[%emt 00:00:04]} Nd7 {[%clk 01:09:14]}
{[%emt 00:01:22]} 13. Bf4 {[%clk 01:28:55]} {[%emt 00:00:49]} Nf6 {[%clk
01:02:01]} {[%emt 00:07:44]} 14. Qd2 {[%clk 01:24:12]} {[%emt 00:05:13]} Kh7
{[%clk 01:01:57]} {[%emt 00:00:33]} 15. Ne5 {[%clk 01:23:44]} {[%emt 00:00:58]}
Nd5 {[%clk 01:01:41]} {[%emt 00:00:47]} 16. Bh2 {[%clk 01:23:47]} {[%emt
00:00:27]} Bf6 {[%clk 00:46:00]} {[%emt 00:16:10]} 17. Bd3 {[%clk 01:22:42]}
{[%emt 00:01:34]} Kg7 {[%clk 00:45:37]} {[%emt 00:00:54]} 18. c4 {[%clk
01:22:10]} {[%emt 00:01:02]} Nc7 {[%clk 00:45:30]} {[%emt 00:00:38]} 19. Bc2
{[%clk 01:20:09]} {[%emt 00:02:31]} Bf5 {[%clk 00:38:49]} {[%emt 00:07:11]} 20.
Bxf5 {[%clk 01:20:21]} {[%emt 00:00:18]} gxf5 {[%clk 00:39:17]} {[%emt
00:00:02]} 21. Rad1 {[%clk 01:18:00]} {[%emt 00:02:50]} e6 {[%clk 00:37:44]}
{[%emt 00:02:04]} 22. Nf3 {[%clk 01:18:17]} {[%emt 00:00:12]} Qd7 {[%clk
00:24:55]} {[%emt 00:13:20]} 23. Be5 {[%clk 01:17:55]} {[%emt 00:00:52]} Bxe5
{[%clk 00:22:59]} {[%emt 00:02:25]} 24. Nxe5 {[%clk 01:18:20]} {[%emt
00:00:05]} Qe7 {[%clk 00:23:04]} {[%emt 00:00:27]} 25. Re3 {[%clk 01:17:07]}
{[%emt 00:01:42]} Rad8 {[%clk 00:20:20]} {[%emt 00:03:14]} 26. Rg3+ {[%clk
01:17:16]} {[%emt 00:00:21]} Kh7 {[%clk 00:20:38]} {[%emt 00:00:12]} 27. Qe2
{[%clk 01:16:28]} {[%emt 00:01:18]} Rg8 {[%clk 00:19:34]} {[%emt 00:01:34]} 28.
Rxg8 {[%clk 01:13:08]} {[%emt 00:03:50]} Rxg8 {[%clk 00:19:17]} {[%emt
00:00:47]} 29. Qh5 {[%clk 01:12:50]} {[%emt 00:00:45]} Rg7 {[%clk 00:17:27]}
{[%emt 00:02:22]} 30. Nf3 {[%clk 01:11:07]} {[%emt 00:02:14]} b6 {[%clk
00:13:27]} {[%emt 00:04:30]} 31. cxb6 {[%clk 01:11:09]} {[%emt 00:00:27]} axb6
{[%clk 00:13:53]} {[%emt 00:00:05]} 32. h4 {[%clk 01:09:34]} {[%emt 00:02:03]}
Qf6 {[%clk 00:12:27]} {[%emt 00:01:57]} 33. Rb1 {[%clk 01:08:42]} {[%emt
00:01:22]} b5 {[%clk 00:12:47]} {[%emt 00:00:11]} 34. cxb5 {[%clk 01:07:43]}
{[%emt 00:01:33]} cxb5 {[%clk 00:12:57]} {[%emt 00:00:24]} 35. Rc1 {[%clk
01:07:44]} {[%emt 00:00:22]} Nd5 {[%clk 00:12:08]} {[%emt 00:01:17]} 36. Ng5+
{[%clk 01:07:31]} {[%emt 00:00:45]} Kh8 {[%clk 00:02:56]} {[%emt 00:09:40]} 37.
Rc8+ {[%clk 01:07:22]} {[%emt 00:00:47]} Rg8 {[%clk 00:03:17]} 38. Nxf7+ {[%clk
01:06:41]} {[%emt 00:01:11]} Kg7 {[%clk 00:02:46]} {[%emt 00:01:01]} 39. Rxg8+
{[%clk 01:06:07]} {[%emt 00:01:05]} Kxg8 {[%clk 00:03:05]} {[%emt 00:00:12]} 40.
Ne5 {[%clk 01:05:28]} {[%emt 00:01:07]} b4 {[%clk 00:02:16]} {[%emt 00:01:19]}
41. Qe8+ {[%clk 01:05:01]} {[%emt 00:01:04]} Kg7 {[%clk 00:29:09]} {[%emt
00:03:31]} 42. h5 {[%clk 01:34:05]} {[%emt 00:01:29]} Ne7 {[%clk 00:18:26]}
{[%emt 00:11:09]} 43. Kf1 {[%clk 01:11:35]} {[%emt 00:23:00]} Qf8 {[%clk
00:17:13]} {[%emt 00:01:43]} 44. Qd7 {[%clk 01:11:19]} {[%emt 00:00:46]} Kf6
{[%clk 00:16:15]} {[%emt 00:01:27]} 45. Qc7 {[%clk 01:02:56]} {[%emt 00:08:53]}
Qe8 {[%clk 00:11:39]} {[%emt 00:05:06]} 46. Nd7+ {[%clk 01:02:19]} {[%emt
00:01:08]} Kg5 {[%clk 00:11:44]} {[%emt 00:00:26]} 47. Qg3+ {[%clk 01:02:24]}
{[%emt 00:00:25]} 1-0

[Event "Skanderborg Skakklub SmukSkak EMT"]
[Site "Niels Ebbesenskolen, Skanderborg, Denmark"]
[Date "2020.08.23"]
[Round "4.3"]
[White "Pedersen, Lars Foldager"]
[Black "Knudsen, Martin"]
[Result "1/2-1/2"]
[TimeControl "90 min. til 40 træk, derefter 30 min. plus opsparet tid til resten af partiet med 30 sek. tillæg pr. træk fra træk ét."]
[WhiteFideId "1417649"]
[BlackFideId "1406523"]
[WhiteElo "1959"]
[BlackElo "1990"]

1. e4 {[%clk 01:30:56]} {[%emt 00:00:02]} c6 {[%clk 01:30:55]} {[%emt
00:00:06]} 2. d4 {[%clk 01:30:42]} {[%emt 00:00:43]} d5 {[%clk 01:31:19]}
{[%emt 00:00:06]} 3. Nd2 {[%clk 01:30:17]} {[%emt 00:00:54]} dxe4 {[%clk
01:31:41]} {[%emt 00:00:09]} 4. Nxe4 {[%clk 01:30:44]} {[%emt 00:00:02]} Nf6
{[%clk 01:32:04]} {[%emt 00:00:07]} 5. Nxf6+ {[%clk 01:30:56]} {[%emt
00:00:17]} exf6 {[%clk 01:32:27]} {[%emt 00:00:08]} 6. Nf3 {[%clk 01:30:05]}
{[%emt 00:01:21]} Bd6 {[%clk 01:32:41]} {[%emt 00:00:17]} 7. Be2 {[%clk
01:28:36]} {[%emt 00:01:58]} O-O {[%clk 01:32:24]} {[%emt 00:00:47]} 8. O-O
{[%clk 01:27:38]} {[%emt 00:01:27]} Bg4 {[%clk 01:30:51]} {[%emt 00:02:03]} 9.
h3 {[%clk 01:25:47]} {[%emt 00:02:22]} Bh5 {[%clk 01:31:15]} {[%emt 00:00:06]}
10. Nh4 {[%clk 01:25:19]} {[%emt 00:00:57]} Bxe2 {[%clk 01:28:46]} {[%emt
00:03:00]} 11. Qxe2 {[%clk 01:25:24]} {[%emt 00:00:25]} Re8 {[%clk 01:26:02]}
{[%emt 00:03:14]} 12. Qg4 {[%clk 01:23:42]} {[%emt 00:02:10]} Bf8 {[%clk
01:21:50]} {[%emt 00:04:44]} 13. Bf4 {[%clk 01:01:14]} {[%emt 00:22:58]} Qd7
{[%clk 01:17:59]} {[%emt 00:04:21]} 14. Nf5 {[%clk 00:54:06]} {[%emt 00:07:38]}
Kh8 {[%clk 01:17:35]} {[%emt 00:00:55]} 15. Rae1 {[%clk 00:49:48]} {[%emt
00:04:47]} Re6 {[%clk 01:07:23]} {[%emt 00:10:43]} 16. d5 {[%clk 00:35:27]}
{[%emt 00:14:51]} cxd5 {[%clk 01:01:41]} {[%emt 00:06:12]} 17. Bd6 {[%clk
00:29:28]} {[%emt 00:06:28]} Qe8 {[%clk 00:57:37]} {[%emt 00:04:35]} 18. Be7
{[%clk 00:22:54]} {[%emt 00:07:03]} Nc6 {[%clk 00:47:21]} {[%emt 00:10:46]} 19.
Bxf8 {[%clk 00:20:54]} {[%emt 00:02:30]} Qxf8 {[%clk 00:47:39]} {[%emt
00:00:12]} 20. Ne3 {[%clk 00:19:18]} {[%emt 00:02:13]} Rd8 {[%clk 00:45:54]}
{[%emt 00:02:13]} 21. Rd1 {[%clk 00:19:09]} {[%emt 00:00:33]} Re5 {[%clk
00:43:28]} {[%emt 00:03:01]} 22. Qf4 {[%clk 00:18:32]} {[%emt 00:01:05]} Qe7
{[%clk 00:38:43]} {[%emt 00:05:19]} 23. Qf3 {[%clk 00:17:14]} {[%emt 00:01:49]}
Qe6 {[%clk 00:35:51]} {[%emt 00:03:24]} 24. Ng4 {[%clk 00:16:54]} {[%emt
00:00:41]} Re4 {[%clk 00:34:55]} {[%emt 00:01:27]} 25. Qb3 {[%clk 00:16:43]}
{[%emt 00:00:42]} b6 {[%clk 00:32:03]} {[%emt 00:03:23]} 26. Qa3 {[%clk
00:13:54]} {[%emt 00:03:17]} h6 {[%clk 00:29:40]} {[%emt 00:02:52]} 27. Qg3
{[%clk 00:13:53]} {[%emt 00:00:30]} Qd6 {[%clk 00:28:07]} {[%emt 00:02:04]} 28.
Qd3 {[%clk 00:13:56]} {[%emt 00:00:26]} Nb4 {[%clk 00:26:27]} {[%emt 00:02:11]}
29. Qb3 {[%clk 00:14:05]} {[%emt 00:00:21]} Nc6 {[%clk 00:24:59]} {[%emt
00:01:59]} 30. Ne3 {[%clk 00:13:56]} {[%emt 00:00:38]} Ne7 {[%clk 00:20:01]}
{[%emt 00:05:29]} 31. Qd3 {[%clk 00:11:11]} {[%emt 00:03:14]} Re6 {[%clk
00:18:39]} {[%emt 00:01:52]} 32. c4 {[%clk 00:10:06]} {[%emt 00:01:35]} dxc4
{[%clk 00:17:55]} {[%emt 00:01:15]} 33. Qxc4 {[%clk 00:08:54]} {[%emt
00:01:41]} Qb8 {[%clk 00:18:03]} {[%emt 00:00:22]} 34. Rxd8+ {[%clk 00:08:40]}
{[%emt 00:00:44]} Qxd8 {[%clk 00:18:25]} {[%emt 00:00:08]} 35. Rd1 {[%clk
00:08:50]} {[%emt 00:00:20]} Rd6 {[%clk 00:15:29]} {[%emt 00:03:27]} 1/2-1/2